{"text_format":"3","workbook":"xlsx","n_sheets":26,"sheets":["بدء","1","2","3","4","5","6","7","8","9","10","11","12","13","14","15","16","17","18","19","20","21","22","23","24","تعرّف على المزيد"],"not_rendered":{"images":24,"defined_names":5,"pivot_tables":19},"read":"whole","date_system":"1900"}

{"sheet":"بدء","index":0,"n_rows":5,"n_cols":1,"rows_kept":5}
["مرحباً\nإرشادات لمستخدمي برامج قراءة الشاشة: احصل على المزيد من PivotTables. يمنحك PivotTable البسيط ملخصاً شاملاً لبياناتك، لكن في بعض الأحيان تحتاج إلى إجابات مفصلة لأسئلة محددة. هذا هو المكان الذي يمكن أن يكون إضافة المزيد من حقول الأعمدة وحقول الصفوف فيه مفيداً. \nستشير الإرشادات إلى الخلايا التي تريد الانتقال إليها لاستخدام ميزة أو قراءة المزيد.\nللبدء اضغط على CTRL+PAGE DOWN."]
["احصل على المزيد من جداول PivotTable"]
["يوفر لك PivotTable البسيط ملخصاً شاملاً لبياناتك، لكن في بعض الأحيان \nتحتاج إلى إجابات مفصلة لأسئلة محددة. هذا هو المكان الذي يمكن أن \nيكون إضافة المزيد من حقول الأعمدة وحقول الصفوف فيه مفيداً."]
["من الرائع معرفة أن\nهل أخذت البرنامج التعليمي الأول؟ إذا لم تأخذه، فانتقل إلى \"ملف\"> \"جديد\" واعثر عن \"قم بإنشاء أول PivotTable\"."]
["ارجع إلى الأعلى بالضغط على CTRL+مفتاح HOME. لبدء الجولة اضغط على CTRL+PAGE DOWN."]

{"sheet":"1","index":1,"n_rows":16,"n_cols":9,"rows_kept":16}
["في البرنامج التعليمي الأول، قدمنا لك مفهوم PivotTable. شرحنا أيضاً كيف يمكن استخدام حقل صف كشرط يقسم حقل قيمة.   "]
["تحتوي الخلايا من H10 إلى I14 على PivotTable يلخص البيانات في الخلايا من B8 إلى E16. يحتوي PivotTable على عمودين: \"المشتري\" و\"مجموع من المبلغ\". يحتوي عمود \"المشتري\" على القيم \"أبي\" و\"أمي\" و\"عائشة\" و\"الإجمالي الكلي\". ويتضمن عمود \"مجموع من المبلغ\" القيم ر.س. 220 و ر.س.270  و ر.س.810  و ر.س. 1300 . يتكون عمود \"المشتري\" من حقل \"الصف\"، ويتكون عمود \"مجموع من المبلغ\" من حقل \"القيمة\"."]
["لمتابعة هذا البرنامج التعليمي، اضغط على CTRL+PAGE DOWN. للانتقال إلى الورقة السابقة، اضغط على CTRL+PAGE UP."]
[]
[]
[]
[]
[null,"التاريخ","المشتري","النوع","المبلغ"]
["يوضح هذا المثال كيف يقسم حقل الصف...","2017-01-01","أبي","الهدايا",{"v":95,"d":"ر.س.‏ 95"}]
["...يقسم حقل القيمة.","2017-01-15","أمي","الطعام",{"v":325,"d":"ر.س.‏ 325"},null,null,"المشتري","مجموع من المبلغ"]
[null,"2017-01-17","أمي","تذاكر",{"v":250,"d":"ر.س.‏ 250"},null,null,"أبي",{"v":220,"d":"ر.س.‏ 220"}]
[null,"2017-01-21","أبي","الطعام",{"v":125,"d":"ر.س.‏ 125"},null,null,"عائشة",{"v":270,"d":"ر.س.‏ 270"}]
[null,"2017-02-02","أمي","الطعام",{"v":235,"d":"ر.س.‏ 235"},null,null,"أمي",{"v":810,"d":"ر.س.‏ 810"}]
[null,"2017-02-20","عائشة","موسيقى",{"v":20,"d":"ر.س.‏ 20"},null,null,"الإجمالي الكلي",{"v":1300,"d":"ر.س.‏ 1,300"}]
[null,"2017-02-25","عائشة","تذاكر",{"v":125,"d":"ر.س.‏ 125"}]
[null,"2017-02-25","عائشة","ألعاب رياضية",{"v":125,"d":"ر.س.‏ 125"}]

{"sheet":"2","index":2,"n_rows":108,"n_cols":7,"rows_kept":108}
["ولكن عند النظر لأول مرة في PivotTable، قد تجد أنك تحتاج إلى المزيد من الإجابات للعديد من الأسئلة حوله."]
["عند النظر لأول مرة في PivotTable، قد يكون لديك أسئلة مثل \"متى تم شراء هذه المشتريات؟\"، \"على أي شيء كان ينفق كل شخص أمواله؟\"، \"ما هو أغلى شيء اشترته أمي؟\"."]
["في هذا المثال، تعرض الخلايا من F11 إلى G15 نفس عمودين PivotTable كما في السابق. إن عمود \"المشتري\" هو حقل \"الصف\"، حيث يحتوي على القيم \"أبي\" و\"أمي\" و\"عائشة\" و\"الإجمالي الكلي\". إن عمود \"مجموع من المبلغ\" هو حقل \"القيمة\"، حيث يحتوي على القيم ر.س. 220  و ر.س. 270 و ر.س. 810  و ر.س. 1300 . "]
["لمتابعة هذا البرنامج التعليمي، اضغط على CTRL+PAGE DOWN. للانتقال إلى الورقة السابقة، اضغط على CTRL+PAGE UP."]
[]
[]
[]
[]
[]
[]
[{"$nulls":5},"المشتري","مجموع من المبلغ"]
[{"$nulls":5},"أبي",{"v":220,"d":"ر.س.‏ 220"}]
[{"$nulls":5},"عائشة",{"v":270,"d":"ر.س.‏ 270"}]
[{"$nulls":5},"أمي",{"v":810,"d":"ر.س.‏ 810"}]
[{"$nulls":5},"الإجمالي الكلي",{"v":1300,"d":"ر.س.‏ 1,300"}]
{"$rows_empty":84}
[null,"التاريخ","المشتري","النوع","المبلغ"]
[null,"2017-01-01","أبي","الهدايا",{"v":95,"d":"ر.س.‏ 95"}]
[null,"2017-01-15","أمي","الطعام",{"v":325,"d":"ر.س.‏ 325"}]
[null,"2017-01-17","أمي","تذاكر",{"v":250,"d":"ر.س.‏ 250"}]
[null,"2017-01-21","أبي","الطعام",{"v":125,"d":"ر.س.‏ 125"}]
[null,"2017-02-02","أمي","الطعام",{"v":235,"d":"ر.س.‏ 235"}]
[null,"2017-02-20","عائشة","موسيقى",{"v":20,"d":"ر.س.‏ 20"}]
[null,"2017-02-25","عائشة","تذاكر",{"v":125,"d":"ر.س.‏ 125"}]
[null,"2017-02-25","عائشة","ألعاب رياضية",{"v":125,"d":"ر.س.‏ 125"}]

{"sheet":"3","index":3,"n_rows":108,"n_cols":7,"rows_kept":108}
["هذه كلها أسئلة جيدة، ولكن في الوقت الحالي دعونا نركز على سؤال واحد فقط."]
["على أي شيء كان ينفق كل شخص أمواله؟"]
["وكنقطة مرجعية، تعرض الخلايا من F11 إلى G15 نفس عمودين PivotTable كما في السابق. إن عمود \"المشتري\" هو حقل \"الصف\"، حيث يحتوي على القيم \"أبي\" و\"أمي\" و\"عائشة\" و\"الإجمالي الكلي\". إن عمود \"مجموع من المبلغ\" هو حقل \"القيمة\"، حيث يحتوي على القيم ر.س. 220  و ر.س. 270 و ر.س. 810  و ر.س. 1300 . "]
["لمتابعة هذا البرنامج التعليمي، اضغط على CTRL+PAGE DOWN. للانتقال إلى الورقة السابقة، اضغط على CTRL+PAGE UP."]
[]
[]
[]
[]
[]
[]
[{"$nulls":5},"المشتري","مجموع من المبلغ"]
[{"$nulls":5},"أبي",{"v":220,"d":"ر.س.‏ 220"}]
[{"$nulls":5},"عائشة",{"v":270,"d":"ر.س.‏ 270"}]
[{"$nulls":5},"أمي",{"v":810,"d":"ر.س.‏ 810"}]
[{"$nulls":5},"الإجمالي الكلي",{"v":1300,"d":"ر.س.‏ 1,300"}]
{"$rows_empty":84}
[null,"التاريخ","المشتري","النوع","المبلغ"]
[null,"2017-01-01","أبي","الهدايا",{"v":95,"d":"ر.س.‏ 95"}]
[null,"2017-01-15","أمي","الطعام",{"v":325,"d":"ر.س.‏ 325"}]
[null,"2017-01-17","أمي","تذاكر",{"v":250,"d":"ر.س.‏ 250"}]
[null,"2017-01-21","أبي","الطعام",{"v":125,"d":"ر.س.‏ 125"}]
[null,"2017-02-02","أمي","الطعام",{"v":235,"d":"ر.س.‏ 235"}]
[null,"2017-02-20","عائشة","موسيقى",{"v":20,"d":"ر.س.‏ 20"}]
[null,"2017-02-25","عائشة","تذاكر",{"v":125,"d":"ر.س.‏ 125"}]
[null,"2017-02-25","عائشة","ألعاب رياضية",{"v":125,"d":"ر.س.‏ 125"}]

{"sheet":"4","index":4,"n_rows":108,"n_cols":9,"rows_kept":108}
["السؤال الأخير الذي طرحناه كان \"على أي شيء كان ينفق كل شخص أمواله؟\""]
["أجبنا عن هذا السؤال بإضافة حقل عمود لـ \"النوع\". نتيجة لذلك، أصبح لدى PivotTable الآن خمسة أعمدة جديدة تعرض لنا نوع الشراء الذي أجراه كل شخص. "]
["ينتقل تطبيق PivotTable الجديد الآن من الخلية C10 إلى I15، مع أعمدة لكل من \"المشتري\" و\"الطعام\" و\"الموسيقى\" و\"ألعاب رياضية\" و\"التذاكر\" و\"الهدايا\" و\"الإجمالي الكلي\". إن \"المشتري\" و\"الإجمالي الكلي\" هما نفس الشيء كما في السابق، وتوجد أعمدة التفاصيل الجديدة بينهما."]
["لمتابعة هذا البرنامج التعليمي، اضغط على CTRL+PAGE DOWN. للانتقال إلى الورقة السابقة، اضغط على CTRL+PAGE UP."]
[]
[]
[]
[]
[]
[null,null,"مجموع من المبلغ","النوع"]
[null,null,"المشتري","الطعام","موسيقى","ألعاب رياضية","تذاكر","الهدايا","الإجمالي الكلي"]
[null,null,"أبي",{"v":125,"d":"ر.س.‏ 125"},{"$nulls":3},{"v":95,"d":"ر.س.‏ 95"},{"v":220,"d":"ر.س.‏ 220"}]
[null,null,"عائشة",null,{"v":20,"d":"ر.س.‏ 20"},{"v":125,"d":"ر.س.‏ 125"},{"v":125,"d":"ر.س.‏ 125"},null,{"v":270,"d":"ر.س.‏ 270"}]
[null,null,"أمي",{"v":560,"d":"ر.س.‏ 560"},null,null,{"v":250,"d":"ر.س.‏ 250"},null,{"v":810,"d":"ر.س.‏ 810"}]
[null,null,"الإجمالي الكلي",{"v":685,"d":"ر.س.‏ 685"},{"v":20,"d":"ر.س.‏ 20"},{"v":125,"d":"ر.س.‏ 125"},{"v":375,"d":"ر.س.‏ 375"},{"v":95,"d":"ر.س.‏ 95"},{"v":1300,"d":"ر.س.‏ 1,300"}]
{"$rows_empty":84}
[null,"التاريخ","المشتري","النوع","المبلغ"]
[null,"2017-01-01","أبي","الهدايا",{"v":95,"d":"ر.س.‏ 95"}]
[null,"2017-01-15","أمي","الطعام",{"v":325,"d":"ر.س.‏ 325"}]
[null,"2017-01-17","أمي","تذاكر",{"v":250,"d":"ر.س.‏ 250"}]
[null,"2017-01-21","أبي","الطعام",{"v":125,"d":"ر.س.‏ 125"}]
[null,"2017-02-02","أمي","الطعام",{"v":235,"d":"ر.س.‏ 235"}]
[null,"2017-02-20","عائشة","موسيقى",{"v":20,"d":"ر.س.‏ 20"}]
[null,"2017-02-25","عائشة","تذاكر",{"v":125,"d":"ر.س.‏ 125"}]
[null,"2017-02-25","عائشة","ألعاب رياضية",{"v":125,"d":"ر.س.‏ 125"}]

{"sheet":"5","index":5,"n_rows":108,"n_cols":9,"rows_kept":108}
["إذا كان من الصعب فهم PivotTable، فجرّب ذلك: اقرأ من اليسار، ثم من الأعلى، ثم من الأسفل. في المثال أدناه، يوجد \"أبي\" في الخلية C12، و\"طعام مقابل ر.س. 125\" في الخلية D12، و\"هدايا مقابل ر.س. 95\" في الخلية E12، و\"الإجمالي الكلي الذي يبلغ ر.س. 220\" في الخلية I12. يعرض الصفان 13 و14 تفاصيل حول \"عائشة\" و\"أمي\"، ويعرض الصف 15 \"الإجمالي الكلي\"."]
["لمتابعة هذا البرنامج التعليمي، اضغط على CTRL+PAGE DOWN. للانتقال إلى الورقة السابقة، اضغط على CTRL+PAGE UP."]
{"$rows_empty":7}
[null,null,"مجموع من المبلغ","النوع"]
[null,null,"المشتري","الطعام","الهدايا","موسيقى","ألعاب رياضية","تذاكر","الإجمالي الكلي"]
[null,null,"أبي",{"v":125,"d":"ر.س.‏ 125"},{"v":95,"d":"ر.س.‏ 95"},{"$nulls":3},{"v":220,"d":"ر.س.‏ 220"}]
[null,null,"عائشة",null,null,{"v":20,"d":"ر.س.‏ 20"},{"v":125,"d":"ر.س.‏ 125"},{"v":125,"d":"ر.س.‏ 125"},{"v":270,"d":"ر.س.‏ 270"}]
[null,null,"أمي",{"v":560,"d":"ر.س.‏ 560"},{"$nulls":3},{"v":250,"d":"ر.س.‏ 250"},{"v":810,"d":"ر.س.‏ 810"}]
[null,null,"الإجمالي الكلي",{"v":685,"d":"ر.س.‏ 685"},{"v":95,"d":"ر.س.‏ 95"},{"v":20,"d":"ر.س.‏ 20"},{"v":125,"d":"ر.س.‏ 125"},{"v":375,"d":"ر.س.‏ 375"},{"v":1300,"d":"ر.س.‏ 1,300"}]
{"$rows_empty":84}
[null,"التاريخ","المشتري","النوع","المبلغ"]
[null,"2017-01-01","أبي","الهدايا",{"v":95,"d":"ر.س.‏ 95"}]
[null,"2017-01-15","أمي","الطعام",{"v":325,"d":"ر.س.‏ 325"}]
[null,"2017-01-17","أمي","تذاكر",{"v":250,"d":"ر.س.‏ 250"}]
[null,"2017-01-21","أبي","الطعام",{"v":125,"d":"ر.س.‏ 125"}]
[null,"2017-02-02","أمي","الطعام",{"v":235,"d":"ر.س.‏ 235"}]
[null,"2017-02-20","عائشة","موسيقى",{"v":20,"d":"ر.س.‏ 20"}]
[null,"2017-02-25","عائشة","تذاكر",{"v":125,"d":"ر.س.‏ 125"}]
[null,"2017-02-25","عائشة","ألعاب رياضية",{"v":125,"d":"ر.س.‏ 125"}]

{"sheet":"6","index":6,"n_rows":3,"n_cols":1,"rows_kept":3}
["لا تفعل ذلك الآن، ولكن خلال بضع خطوات، سوف تستخدم PivotTable. أول شيء تقوم به هو إنشاء التفاصيل في حقل \"الأعمدة\". ستفعل ذلك عن طريق وضع حقل \"النوع\" في منطقة حقل \"الأعمدة\"."]
["صورة \"قائمة حقول PivotTable\" تظهر مؤشر سهم يسحب حقل \"النوع\" إلى منطقة \"الأعمدة\"."]
["لمتابعة هذا البرنامج التعليمي، اضغط على CTRL+PAGE DOWN. للانتقال إلى الورقة السابقة، اضغط على CTRL+PAGE UP."]

{"sheet":"7","index":7,"n_rows":108,"n_cols":8,"rows_kept":108}
["1. توجد \"منطقة PivotTable\" لهذا المثال في الخلايا من B13 إلى C17. انتقل إلى أي من هذه الخلايا."]
["2. اضغط على ALT+غ2،‏ ؤ لتشغيل قائمة حقول PivotTable. سينتقل التركيز افتراضياً إلى مربع نص البحث: التحرير \"بحث\""]
["3. اضغط مفاتيح الأسهم لتحديد حقل \"النوع\". بعد التحديد، اضغط على مفتاح المسافة لإضافة حقل \"النوع\" إلى منطقة \"الصفوف\". "]
["4. اضغط على المفتاح Tab لتحديد حقل \"النوع\". اضغط على مفتاح الإدخال Enter، ثم اضغط على مفاتيح الأسهم لتحديد \"نقل إلى تسميات الأعمدة\" واضغط على مفتاح الإدخال Enter لإضافة حقل \"الكتابة\" إلى ناحية \"الأعمدة\". اضغط على ALT+غ2+ؤ للخروج من الجزء \"حقول PivotTable\"."]
["لمتابعة هذا البرنامج التعليمي، اضغط على CTRL+PAGE DOWN. للانتقال إلى الورقة السابقة، اضغط على CTRL+PAGE UP."]
[]
[]
[]
[{"$nulls":7},{"$f":"IF(AND($B$14=\"المشتري\",$H$17=810),\"أحسنت! لقد وضعت حقل\",\" \")","v":" "}]
[{"$nulls":7},{"$f":"IF(AND($B$14=\"المشتري\",$H$17=810),\"العمود الأول. انقر فوق\",\" \")","v":" "}]
[{"$nulls":7},{"$f":"IF(AND($B$14=\"المشتري\",$H$17=810),\"'التالي' للمتابعة...\",\" \")","v":" "}]
[]
[null,"المشتري","مجموع من المبلغ"]
[null,"أبي",{"v":220,"d":"ر.س.‏ 220"}]
[null,"عائشة",{"v":270,"d":"ر.س.‏ 270"}]
[null,"أمي",{"v":810,"d":"ر.س.‏ 810"}]
[null,"الإجمالي الكلي",{"v":1300,"d":"ر.س.‏ 1,300"}]
{"$rows_empty":82}
[null,"التاريخ","المشتري","النوع","المبلغ"]
[null,"2017-01-01","أبي","الهدايا",{"v":95,"d":"ر.س.‏ 95"}]
[null,"2017-01-15","أمي","الطعام",{"v":325,"d":"ر.س.‏ 325"}]
[null,"2017-01-17","أمي","تذاكر",{"v":250,"d":"ر.س.‏ 250"}]
[null,"2017-01-21","أبي","الطعام",{"v":125,"d":"ر.س.‏ 125"}]
[null,"2017-02-02","أمي","الطعام",{"v":235,"d":"ر.س.‏ 235"}]
[null,"2017-02-20","عائشة","موسيقى",{"v":20,"d":"ر.س.‏ 20"}]
[null,"2017-02-25","عائشة","تذاكر",{"v":125,"d":"ر.س.‏ 125"}]
[null,"2017-02-25","عائشة","ألعاب رياضية",{"v":125,"d":"ر.س.‏ 125"}]

{"sheet":"8","index":8,"n_rows":108,"n_cols":9,"rows_kept":108}
["لنراجع PivotTable الذي قمت بإنشائه للتو، لكننا أضفنا هذه المرة بعض الألوان المميزة لتمييز حقول الصف والعمود والقيمة."]
["ينتقل حقل الصف من الخلية C10 إلى C13، ويتم تظليله باللون الأصفر."]
["ينتقل حقل العمود من الخلية D9 إلى H10، ويتم تظليله باللون البرتقالي."]
["ينتقل حقل القيمة من الخلية D11 إلى H13، ويتم تظليله باللون الأزرق."]
["لمتابعة هذا البرنامج التعليمي، اضغط على CTRL+PAGE DOWN. للانتقال إلى الورقة السابقة، اضغط على CTRL+PAGE UP."]
[]
[]
[]
[null,null,"مجموع من المبلغ","النوع"]
[null,null,"المشتري","الطعام","الهدايا","موسيقى","ألعاب رياضية","تذاكر","الإجمالي الكلي"]
[null,null,"أبي",{"v":125,"d":"ر.س.‏ 125"},{"v":95,"d":"ر.س.‏ 95"},{"$nulls":3},{"v":220,"d":"ر.س.‏ 220"}]
[null,null,"عائشة",null,null,{"v":20,"d":"ر.س.‏ 20"},{"v":125,"d":"ر.س.‏ 125"},{"v":125,"d":"ر.س.‏ 125"},{"v":270,"d":"ر.س.‏ 270"}]
[null,null,"أمي",{"v":560,"d":"ر.س.‏ 560"},{"$nulls":3},{"v":250,"d":"ر.س.‏ 250"},{"v":810,"d":"ر.س.‏ 810"}]
[null,null,"الإجمالي الكلي",{"v":685,"d":"ر.س.‏ 685"},{"v":95,"d":"ر.س.‏ 95"},{"v":20,"d":"ر.س.‏ 20"},{"v":125,"d":"ر.س.‏ 125"},{"v":375,"d":"ر.س.‏ 375"},{"v":1300,"d":"ر.س.‏ 1,300"}]
{"$rows_empty":85}
[null,"التاريخ","المشتري","النوع","المبلغ"]
[null,"2017-01-01","أبي","الهدايا",{"v":95,"d":"ر.س.‏ 95"}]
[null,"2017-01-15","أمي","الطعام",{"v":325,"d":"ر.س.‏ 325"}]
[null,"2017-01-17","أمي","تذاكر",{"v":250,"d":"ر.س.‏ 250"}]
[null,"2017-01-21","أبي","الطعام",{"v":125,"d":"ر.س.‏ 125"}]
[null,"2017-02-02","أمي","الطعام",{"v":235,"d":"ر.س.‏ 235"}]
[null,"2017-02-20","عائشة","موسيقى",{"v":20,"d":"ر.س.‏ 20"}]
[null,"2017-02-25","عائشة","تذاكر",{"v":125,"d":"ر.س.‏ 125"}]
[null,"2017-02-25","عائشة","ألعاب رياضية",{"v":125,"d":"ر.س.‏ 125"}]

{"sheet":"9","index":9,"n_rows":3,"n_cols":1,"rows_kept":3}
["فيما يلي طريقة أخرى للتفكير في الأمر: يوجد حقل الصف على اليمين، وحقل العمود في الأعلى. كل من هذه توفر شرطاً لحقل القيمة، والذي يقوم بجمعها."]
["تُظهر صورة تصورية منطقة مستطيلة مكونة من 4 مقاطع مع حقل \"الصف\" في الأسفل على اليمين باللون الأصفر، وحقل \"العمود\" في الأعلى على اليسار باللون البرتقالي، وحقل \"القيمة\" في الجزء السفلي الأيمن باللون الأزرق."]
["لمتابعة هذا البرنامج التعليمي، اضغط على CTRL+PAGE DOWN. للانتقال إلى الورقة السابقة، اضغط على CTRL+PAGE UP."]

{"sheet":"10","index":10,"n_rows":3,"n_cols":1,"rows_kept":3}
["فكر في الأمر بهذه الطريقة عند استخدام قائمة الحقول. يوجد حقل الصف على اليمين، وحقل العمود في الأعلى. كل من هذه توفر شرطاً لحقل القيمة، والذي يقوم بجمعها."]
["تُظهر صورة تصورية قائمة حقول PivotTable المعروضة مع حقل \"الصف\" في الأسفل على اليمين باللون الأصفر، وحقل \"العمود\" في الأعلى على اليسار باللون البرتقالي، وحقل \"القيمة\" في الجزء السفلي الأيمن باللون الأزرق."]
["لمتابعة هذا البرنامج التعليمي، اضغط على CTRL+PAGE DOWN. للانتقال إلى الورقة السابقة، اضغط على CTRL+PAGE UP."]

{"sheet":"11","index":11,"n_rows":121,"n_cols":24,"rows_kept":121}
["هناك شيء واحد يجب أن تكون على دراية به: إذا كان حقل عمود يضيف الكثير من الأعمدة إلى PivotTable، فسوف يجعله عريضاً جداً. "]
["في هذا المثال، يتراوح نطاق PivotTable الآن من الخلية C10 إلى X15، حيث أضاف حقل العمود 20 عموداً جديداً. هذا عدد كبير من الأعمدة! سيؤدي هذا إلى جعل الأشخاص يقومون بالتمرير كثيراً..."]
["لمتابعة هذا البرنامج التعليمي، اضغط على CTRL+PAGE DOWN. للانتقال إلى الورقة السابقة، اضغط على CTRL+PAGE UP."]
[]
[]
[]
[]
[]
[]
[null,null,"مجموع من المبلغ","النوع"]
[null,null,"المشتري","الأسنان","الإلكترونيات","التأمين الصحي","الرحلة الجوية","الضرائب","الطعام","ألعاب رياضية","العشاء","الكتب","الكهرباء","المتطلبات الطبية","الملابس","الوقود","تأمين السيارة","تأمين المنزل","تذاكر","دروس الموسيقى","مستحقات النادي","موسيقى","موقف السيارات","الإجمالي الكلي"]
[null,null,"أبي",{"$nulls":3},{"v":500,"d":"ر.س.‏ 500"},{"v":500,"d":"ر.س.‏ 500"},null,{"v":1000,"d":"ر.س.‏ 1,000"},{"$nulls":13},{"v":2000,"d":"ر.س.‏ 2,000"}]
[null,null,"أمي",{"v":235,"d":"ر.س.‏ 235"},null,{"v":70,"d":"ر.س.‏ 70"},null,null,{"v":470,"d":"ر.س.‏ 470"},{"$nulls":3},{"v":70,"d":"ر.س.‏ 70"},{"v":74,"d":"ر.س.‏ 74"},null,{"v":74,"d":"ر.س.‏ 74"},{"v":74,"d":"ر.س.‏ 74"},{"v":235,"d":"ر.س.‏ 235"},null,null,{"v":125,"d":"ر.س.‏ 125"},null,null,{"v":1427,"d":"ر.س.‏ 1,427"}]
[null,null,"عائشة",null,{"v":125,"d":"ر.س.‏ 125"},{"$nulls":5},{"v":20,"d":"ر.س.‏ 20"},{"v":250,"d":"ر.س.‏ 250"},null,null,{"v":125,"d":"ر.س.‏ 125"},{"$nulls":3},{"v":125,"d":"ر.س.‏ 125"},{"v":250,"d":"ر.س.‏ 250"},null,{"v":20,"d":"ر.س.‏ 20"},{"v":20,"d":"ر.س.‏ 20"},{"v":935,"d":"ر.س.‏ 935"}]
[null,null,"الإجمالي الكلي",{"v":235,"d":"ر.س.‏ 235"},{"v":125,"d":"ر.س.‏ 125"},{"v":70,"d":"ر.س.‏ 70"},{"v":500,"d":"ر.س.‏ 500"},{"v":500,"d":"ر.س.‏ 500"},{"v":470,"d":"ر.س.‏ 470"},{"v":1000,"d":"ر.س.‏ 1,000"},{"v":20,"d":"ر.س.‏ 20"},{"v":250,"d":"ر.س.‏ 250"},{"v":70,"d":"ر.س.‏ 70"},{"v":74,"d":"ر.س.‏ 74"},{"v":125,"d":"ر.س.‏ 125"},{"v":74,"d":"ر.س.‏ 74"},{"v":74,"d":"ر.س.‏ 74"},{"v":235,"d":"ر.س.‏ 235"},{"v":125,"d":"ر.س.‏ 125"},{"v":250,"d":"ر.س.‏ 250"},{"v":125,"d":"ر.س.‏ 125"},{"v":20,"d":"ر.س.‏ 20"},{"v":20,"d":"ر.س.‏ 20"},{"v":4362,"d":"ر.س.‏ 4,362"}]
{"$rows_empty":84}
[null,"التاريخ","المشتري","النوع","المبلغ"]
[null,"2017-01-17","أبي","ألعاب رياضية",{"v":1000,"d":"ر.س.‏ 1,000"}]
[null,"2017-01-17","أبي","الرحلة الجوية",{"v":500,"d":"ر.س.‏ 500"}]
[null,"2017-01-17","أبي","الضرائب",{"v":500,"d":"ر.س.‏ 500"}]
[null,"2017-02-20","عائشة","موسيقى",{"v":20,"d":"ر.س.‏ 20"}]
[null,"2017-02-25","عائشة","تذاكر",{"v":125,"d":"ر.س.‏ 125"}]
[null,"2017-01-21","عائشة","الكتب",{"v":250,"d":"ر.س.‏ 250"}]
[null,"2017-02-20","عائشة","العشاء",{"v":20,"d":"ر.س.‏ 20"}]
[null,"2017-02-25","عائشة","الملابس",{"v":125,"d":"ر.س.‏ 125"}]
[null,"2017-01-21","عائشة","دروس الموسيقى",{"v":250,"d":"ر.س.‏ 250"}]
[null,"2017-02-20","عائشة","موقف السيارات",{"v":20,"d":"ر.س.‏ 20"}]
[null,"2017-02-25","عائشة","الإلكترونيات",{"v":125,"d":"ر.س.‏ 125"}]
[null,"2017-01-01","أمي","الوقود",{"v":74,"d":"ر.س.‏ 74"}]
[null,"2017-01-15","أمي","الطعام",{"v":235,"d":"ر.س.‏ 235"}]
[null,"2017-01-21","أمي","مستحقات النادي",{"v":125,"d":"ر.س.‏ 125"}]
[null,"2017-02-02","أمي","الطعام",{"v":235,"d":"ر.س.‏ 235"}]
[null,"2017-01-01","أمي","المتطلبات الطبية",{"v":74,"d":"ر.س.‏ 74"}]
[null,"2017-01-15","أمي","الكهرباء",{"v":70,"d":"ر.س.‏ 70"}]
[null,"2017-02-02","أمي","الأسنان",{"v":235,"d":"ر.س.‏ 235"}]
[null,"2017-01-01","أمي","تأمين السيارة",{"v":74,"d":"ر.س.‏ 74"}]
[null,"2017-01-15","أمي","التأمين الصحي",{"v":70,"d":"ر.س.‏ 70"}]
[null,"2017-02-02","أمي","تأمين المنزل",{"v":235,"d":"ر.س.‏ 235"}]

{"sheet":"12","index":12,"n_rows":119,"n_cols":5,"rows_kept":119}
["هناك بديل عن PivotTables العريضة جداً: يمكنك استخدام حقل الصف الثاني بدلاً من ذلك. سيظهر حقل صف ثاني بمسافة بادئة تحت حقل الصف الأول."]
["في هذا المثال، يوجد PivotTable من الخلية D8 إلى E32. ويعرض \"أبي\" و\"عائشة\" و\"أمي\" كحقول الصف الأول في العمود D، ثم أنواع الإنفاق تحتها كحقول الصف الثاني تحتوي على عناصر مثل \"الرياضة\" و\"الرحلة الجوية\" و\"العشاء\"، إلخ."]
["من الرائع معرفة أن\nحقل الصف الثاني يجعل PivotTable موجه عمودياً بدلاً من أفقياً. يجد بعض الأشخاص أن PivotTable العمودي أسهل في القراءة لأنه لا يتطلب قدراً كبيراً من التمرير من جانب إلى آخر."]
["مصطلحات EXCEL\nفي بعض الأحيان، يطلق الأشخاص على حقل الصف الثاني \"حقل الصف الثانوي\"."]
["لمتابعة هذا البرنامج التعليمي، اضغط على CTRL+PAGE DOWN. للانتقال إلى الورقة السابقة، اضغط على CTRL+PAGE UP."]
[]
[]
[{"$nulls":3},"تسميات الصفوف","مجموع من المبلغ"]
[{"$nulls":3},"أبي",{"v":2000,"d":"ر.س.‏ 2,000"}]
[{"$nulls":3},"الرحلة الجوية",{"v":500,"d":"ر.س.‏ 500"}]
[{"$nulls":3},"الضرائب",{"v":500,"d":"ر.س.‏ 500"}]
[{"$nulls":3},"ألعاب رياضية",{"v":1000,"d":"ر.س.‏ 1,000"}]
[{"$nulls":3},"عائشة",{"v":935,"d":"ر.س.‏ 935"}]
[{"$nulls":3},"الإلكترونيات",{"v":125,"d":"ر.س.‏ 125"}]
[{"$nulls":3},"العشاء",{"v":20,"d":"ر.س.‏ 20"}]
[{"$nulls":3},"الكتب",{"v":250,"d":"ر.س.‏ 250"}]
[{"$nulls":3},"الملابس",{"v":125,"d":"ر.س.‏ 125"}]
[{"$nulls":3},"تذاكر",{"v":125,"d":"ر.س.‏ 125"}]
[{"$nulls":3},"دروس الموسيقى",{"v":250,"d":"ر.س.‏ 250"}]
[{"$nulls":3},"موسيقى",{"v":20,"d":"ر.س.‏ 20"}]
[{"$nulls":3},"موقف السيارات",{"v":20,"d":"ر.س.‏ 20"}]
[{"$nulls":3},"أمي",{"v":1427,"d":"ر.س.‏ 1,427"}]
[{"$nulls":3},"الأسنان",{"v":235,"d":"ر.س.‏ 235"}]
[{"$nulls":3},"التأمين الصحي",{"v":70,"d":"ر.س.‏ 70"}]
[{"$nulls":3},"الطعام",{"v":470,"d":"ر.س.‏ 470"}]
[{"$nulls":3},"الكهرباء",{"v":70,"d":"ر.س.‏ 70"}]
[{"$nulls":3},"المتطلبات الطبية",{"v":74,"d":"ر.س.‏ 74"}]
[{"$nulls":3},"الوقود",{"v":74,"d":"ر.س.‏ 74"}]
[{"$nulls":3},"تأمين السيارة",{"v":74,"d":"ر.س.‏ 74"}]
[{"$nulls":3},"تأمين المنزل",{"v":235,"d":"ر.س.‏ 235"}]
[{"$nulls":3},"مستحقات النادي",{"v":125,"d":"ر.س.‏ 125"}]
[{"$nulls":3},"الإجمالي الكلي",{"v":4362,"d":"ر.س.‏ 4,362"}]
{"$rows_empty":65}
[null,"التاريخ","المشتري","النوع","المبلغ"]
[null,"2017-01-17","أبي","ألعاب رياضية",{"v":1000,"d":"ر.س.‏ 1,000"}]
[null,"2017-01-17","أبي","الرحلة الجوية",{"v":500,"d":"ر.س.‏ 500"}]
[null,"2017-01-17","أبي","الضرائب",{"v":500,"d":"ر.س.‏ 500"}]
[null,"2017-02-20","عائشة","موسيقى",{"v":20,"d":"ر.س.‏ 20"}]
[null,"2017-02-25","عائشة","تذاكر",{"v":125,"d":"ر.س.‏ 125"}]
[null,"2017-01-21","عائشة","الكتب",{"v":250,"d":"ر.س.‏ 250"}]
[null,"2017-02-20","عائشة","العشاء",{"v":20,"d":"ر.س.‏ 20"}]
[null,"2017-02-25","عائشة","الملابس",{"v":125,"d":"ر.س.‏ 125"}]
[null,"2017-01-21","عائشة","دروس الموسيقى",{"v":250,"d":"ر.س.‏ 250"}]
[null,"2017-02-20","عائشة","موقف السيارات",{"v":20,"d":"ر.س.‏ 20"}]
[null,"2017-02-25","عائشة","الإلكترونيات",{"v":125,"d":"ر.س.‏ 125"}]
[null,"2017-01-01","أمي","الوقود",{"v":74,"d":"ر.س.‏ 74"}]
[null,"2017-01-15","أمي","الطعام",{"v":235,"d":"ر.س.‏ 235"}]
[null,"2017-01-21","أمي","مستحقات النادي",{"v":125,"d":"ر.س.‏ 125"}]
[null,"2017-02-02","أمي","الطعام",{"v":235,"d":"ر.س.‏ 235"}]
[null,"2017-01-01","أمي","المتطلبات الطبية",{"v":74,"d":"ر.س.‏ 74"}]
[null,"2017-01-15","أمي","الكهرباء",{"v":70,"d":"ر.س.‏ 70"}]
[null,"2017-02-02","أمي","الأسنان",{"v":235,"d":"ر.س.‏ 235"}]
[null,"2017-01-01","أمي","تأمين السيارة",{"v":74,"d":"ر.س.‏ 74"}]
[null,"2017-01-15","أمي","التأمين الصحي",{"v":70,"d":"ر.س.‏ 70"}]
[null,"2017-02-02","أمي","تأمين المنزل",{"v":235,"d":"ر.س.‏ 235"}]

{"sheet":"13","index":13,"n_rows":3,"n_cols":1,"rows_kept":3}
["في الورقة التالية، ستضيف حقل صف ثاني. وستفعل ذلك عن طريق وضع حقل \"النوع\" ضمن حقل \"المشتري\" في حقل \"الصفوف\"."]
["صورة \"قائمة حقول PivotTable\" تظهر مؤشر سهم يسحب حقل \"النوع\" إلى منطقة \"الصفوف\"."]
["لمتابعة هذا البرنامج التعليمي، اضغط على CTRL+PAGE DOWN. للانتقال إلى الورقة السابقة، اضغط على CTRL+PAGE UP."]

{"sheet":"14","index":14,"n_rows":122,"n_cols":9,"rows_kept":122}
["1. توجد \"منطقة PivotTable\" لهذا المثال في الخلايا من B13 إلى C17. انتقل إلى أي من هذه الخلايا. "]
["2. اضغط على ALT+غ2،‏ ؤ لتشغيل قائمة حقول PivotTable. سينتقل التركيز افتراضياً إلى مربع نص البحث: \"اكتب الكلمات للبحث عنها\" تحرير. لا تكتب أي شيء، بدلاً من ذلك، اضغط على مفتاح tab مرة واحدة. ملاحظة: إذا لم يتم تشغيل \"قائمة الحقول\"، فاضغط على ALT+غ2،‏ ؤ مرة أخرى."]
["3. اضغط على مفاتيح الأسهم للانتقال إلى حقل \"النوع\". اضغط على مفتاح المسافة لإضافة حقل \"النوع\" إلى منطقة \"الصفوف\". "]
["4. اضغط على مفتاح الخروج ESC للخروج من جزء حقول PivotTable. "]
["لمتابعة هذا البرنامج التعليمي، اضغط على CTRL+PAGE DOWN. للانتقال إلى الورقة السابقة، اضغط على CTRL+PAGE UP.",{"$nulls":7},{"$f":"IF(AND($B$15=\"الرحلة الجوية\",$C$36=125),\"تقدم جيد! قمت بإضافة حقل\",\" \")","v":" "}]
[{"$nulls":8},{"$f":"IF(AND($B$15=\"الرحلة الجوية\",$C$36=125),\"صف ثاني إلى PivotTable.\",\" \")","v":" "}]
[{"$nulls":8},{"$f":"IF(AND($B$15=\"الرحلة الجوية\",$C$36=125),\"قم بالتمرير لأسفل وانقر فوق\",\" \")","v":" "}]
[{"$nulls":8},{"$f":"IF(AND($B$15=\"الرحلة الجوية\",$C$36=125),\"'التالي'...\",\" \")","v":" "}]
[]
[]
[]
[]
[null,"تسميات الصفوف","مجموع من المبلغ"]
[null,"أبي",{"v":2000,"d":"ر.س.‏ 2,000"}]
[null,"عائشة",{"v":935,"d":"ر.س.‏ 935"}]
[null,"أمي",{"v":1427,"d":"ر.س.‏ 1,427"}]
[null,"الإجمالي الكلي",{"v":4362,"d":"ر.س.‏ 4,362"}]
{"$rows_empty":83}
[null,"التاريخ","المشتري","النوع","المبلغ"]
[null,"2017-01-17","أبي","ألعاب رياضية",{"v":1000,"d":"ر.س.‏ 1,000"}]
[null,"2017-01-17","أبي","الرحلة الجوية",{"v":500,"d":"ر.س.‏ 500"}]
[null,"2017-01-17","أبي","الضرائب",{"v":500,"d":"ر.س.‏ 500"}]
[null,"2017-02-20","عائشة","موسيقى",{"v":20,"d":"ر.س.‏ 20"}]
[null,"2017-02-25","عائشة","تذاكر",{"v":125,"d":"ر.س.‏ 125"}]
[null,"2017-01-21","عائشة","الكتب",{"v":250,"d":"ر.س.‏ 250"}]
[null,"2017-02-20","عائشة","العشاء",{"v":20,"d":"ر.س.‏ 20"}]
[null,"2017-02-25","عائشة","الملابس",{"v":125,"d":"ر.س.‏ 125"}]
[null,"2017-01-21","عائشة","دروس الموسيقى",{"v":250,"d":"ر.س.‏ 250"}]
[null,"2017-02-20","عائشة","موقف السيارات",{"v":20,"d":"ر.س.‏ 20"}]
[null,"2017-02-25","عائشة","الإلكترونيات",{"v":125,"d":"ر.س.‏ 125"}]
[null,"2017-01-01","أمي","الوقود",{"v":74,"d":"ر.س.‏ 74"}]
[null,"2017-01-15","أمي","الطعام",{"v":235,"d":"ر.س.‏ 235"}]
[null,"2017-01-21","أمي","مستحقات النادي",{"v":125,"d":"ر.س.‏ 125"}]
[null,"2017-02-02","أمي","الطعام",{"v":235,"d":"ر.س.‏ 235"}]
[null,"2017-01-01","أمي","المتطلبات الطبية",{"v":74,"d":"ر.س.‏ 74"}]
[null,"2017-01-15","أمي","الكهرباء",{"v":70,"d":"ر.س.‏ 70"}]
[null,"2017-02-02","أمي","الأسنان",{"v":235,"d":"ر.س.‏ 235"}]
[null,"2017-01-01","أمي","تأمين السيارة",{"v":74,"d":"ر.س.‏ 74"}]
[null,"2017-01-15","أمي","التأمين الصحي",{"v":70,"d":"ر.س.‏ 70"}]
[null,"2017-02-02","أمي","تأمين المنزل",{"v":235,"d":"ر.س.‏ 235"}]

{"sheet":"15","index":15,"n_rows":121,"n_cols":7,"rows_kept":121}
["إذا كنت بحاجة إلى تبسيط PivotTable، يمكنك طي البيانات لحقل الصف الثاني \"في الأعلى\" وبعيداً. "]
["يوجد PivotTable لهذا المثال في الخلايا من F7 إلى G31. حدد الخلية F8 لاختيار حقل الصف الأول لـ \"أبي\". بعد ذلك، اضغط على Alt+غ2 > و لتوسيع الحقل الثاني أو ط لطيه."]
["لمتابعة هذا البرنامج التعليمي، اضغط على CTRL+PAGE DOWN. للانتقال إلى الورقة السابقة، اضغط على CTRL+PAGE UP."]
[]
[]
[{"$nulls":5},{"$f":"IF(AND($F$9=\"عائشة\",$G$9=935),\"رائع!\",\" \")","v":" "}]
[{"$nulls":5},"تسميات الصفوف","مجموع من المبلغ"]
[{"$nulls":5},"أبي",{"v":2000,"d":"ر.س.‏ 2,000"}]
[{"$nulls":5},"الرحلة الجوية",{"v":500,"d":"ر.س.‏ 500"}]
[{"$nulls":5},"الضرائب",{"v":500,"d":"ر.س.‏ 500"}]
[{"$nulls":5},"ألعاب رياضية",{"v":1000,"d":"ر.س.‏ 1,000"}]
[{"$nulls":5},"عائشة",{"v":935,"d":"ر.س.‏ 935"}]
[{"$nulls":5},"الإلكترونيات",{"v":125,"d":"ر.س.‏ 125"}]
[{"$nulls":5},"العشاء",{"v":20,"d":"ر.س.‏ 20"}]
[{"$nulls":5},"الكتب",{"v":250,"d":"ر.س.‏ 250"}]
[{"$nulls":5},"الملابس",{"v":125,"d":"ر.س.‏ 125"}]
[{"$nulls":5},"تذاكر",{"v":125,"d":"ر.س.‏ 125"}]
[{"$nulls":5},"دروس الموسيقى",{"v":250,"d":"ر.س.‏ 250"}]
[{"$nulls":5},"موسيقى",{"v":20,"d":"ر.س.‏ 20"}]
[{"$nulls":5},"موقف السيارات",{"v":20,"d":"ر.س.‏ 20"}]
[{"$nulls":5},"أمي",{"v":1427,"d":"ر.س.‏ 1,427"}]
[{"$nulls":5},"الأسنان",{"v":235,"d":"ر.س.‏ 235"}]
[{"$nulls":5},"التأمين الصحي",{"v":70,"d":"ر.س.‏ 70"}]
[{"$nulls":5},"الطعام",{"v":470,"d":"ر.س.‏ 470"}]
[{"$nulls":5},"الكهرباء",{"v":70,"d":"ر.س.‏ 70"}]
[{"$nulls":5},"المتطلبات الطبية",{"v":74,"d":"ر.س.‏ 74"}]
[{"$nulls":5},"الوقود",{"v":74,"d":"ر.س.‏ 74"}]
[{"$nulls":5},"تأمين السيارة",{"v":74,"d":"ر.س.‏ 74"}]
[{"$nulls":5},"تأمين المنزل",{"v":235,"d":"ر.س.‏ 235"}]
[{"$nulls":5},"مستحقات النادي",{"v":125,"d":"ر.س.‏ 125"}]
[{"$nulls":5},"الإجمالي الكلي",{"v":4362,"d":"ر.س.‏ 4,362"}]
{"$rows_empty":68}
[null,"التاريخ","المشتري","النوع","المبلغ"]
[null,"2017-01-17","أبي","ألعاب رياضية",{"v":1000,"d":"ر.س.‏ 1,000"}]
[null,"2017-01-17","أبي","الرحلة الجوية",{"v":500,"d":"ر.س.‏ 500"}]
[null,"2017-01-17","أبي","الضرائب",{"v":500,"d":"ر.س.‏ 500"}]
[null,"2017-02-20","عائشة","موسيقى",{"v":20,"d":"ر.س.‏ 20"}]
[null,"2017-02-25","عائشة","تذاكر",{"v":125,"d":"ر.س.‏ 125"}]
[null,"2017-01-21","عائشة","الكتب",{"v":250,"d":"ر.س.‏ 250"}]
[null,"2017-02-20","عائشة","العشاء",{"v":20,"d":"ر.س.‏ 20"}]
[null,"2017-02-25","عائشة","الملابس",{"v":125,"d":"ر.س.‏ 125"}]
[null,"2017-01-21","عائشة","دروس الموسيقى",{"v":250,"d":"ر.س.‏ 250"}]
[null,"2017-02-20","عائشة","موقف السيارات",{"v":20,"d":"ر.س.‏ 20"}]
[null,"2017-02-25","عائشة","الإلكترونيات",{"v":125,"d":"ر.س.‏ 125"}]
[null,"2017-01-01","أمي","الوقود",{"v":74,"d":"ر.س.‏ 74"}]
[null,"2017-01-15","أمي","الطعام",{"v":235,"d":"ر.س.‏ 235"}]
[null,"2017-01-21","أمي","مستحقات النادي",{"v":125,"d":"ر.س.‏ 125"}]
[null,"2017-02-02","أمي","الطعام",{"v":235,"d":"ر.س.‏ 235"}]
[null,"2017-01-01","أمي","المتطلبات الطبية",{"v":74,"d":"ر.س.‏ 74"}]
[null,"2017-01-15","أمي","الكهرباء",{"v":70,"d":"ر.س.‏ 70"}]
[null,"2017-02-02","أمي","الأسنان",{"v":235,"d":"ر.س.‏ 235"}]
[null,"2017-01-01","أمي","تأمين السيارة",{"v":74,"d":"ر.س.‏ 74"}]
[null,"2017-01-15","أمي","التأمين الصحي",{"v":70,"d":"ر.س.‏ 70"}]
[null,"2017-02-02","أمي","تأمين المنزل",{"v":235,"d":"ر.س.‏ 235"}]

{"sheet":"16","index":16,"n_rows":121,"n_cols":7,"rows_kept":121}
["يمكنك أيضاً طي حقل الصف الثاني بالكامل أو توسيعه، لتبسيط PivotTable بشكل أكبر."]
["ها هي الفكرة الرئيسية"]
["حدد نطاق البيانات PivotTable في الخلايا من F7 إلى G31، ثم اضغط على ALT+غ2> ط لطي المجموعة بأكملها. على العكس، عند الضغط على ALT + غ2> و سيتم توسيع المجموعة بأكملها."]
["لمتابعة هذا البرنامج التعليمي، اضغط على CTRL+PAGE DOWN. للانتقال إلى الورقة السابقة، اضغط على CTRL+PAGE UP."]
[]
[{"$nulls":5},{"$f":"IF(AND($F$9=\"عائشة\",$G$9=935),\"مذهل!\",\" \")","v":" "}]
[{"$nulls":5},"تسميات الصفوف","مجموع من المبلغ"]
[{"$nulls":5},"أبي",{"v":2000,"d":"ر.س.‏ 2,000"}]
[{"$nulls":5},"الرحلة الجوية",{"v":500,"d":"ر.س.‏ 500"}]
[{"$nulls":5},"الضرائب",{"v":500,"d":"ر.س.‏ 500"}]
[{"$nulls":5},"ألعاب رياضية",{"v":1000,"d":"ر.س.‏ 1,000"}]
[{"$nulls":5},"عائشة",{"v":935,"d":"ر.س.‏ 935"}]
[{"$nulls":5},"الإلكترونيات",{"v":125,"d":"ر.س.‏ 125"}]
[{"$nulls":5},"العشاء",{"v":20,"d":"ر.س.‏ 20"}]
[{"$nulls":5},"الكتب",{"v":250,"d":"ر.س.‏ 250"}]
[{"$nulls":5},"الملابس",{"v":125,"d":"ر.س.‏ 125"}]
[{"$nulls":5},"تذاكر",{"v":125,"d":"ر.س.‏ 125"}]
[{"$nulls":5},"دروس الموسيقى",{"v":250,"d":"ر.س.‏ 250"}]
[{"$nulls":5},"موسيقى",{"v":20,"d":"ر.س.‏ 20"}]
[{"$nulls":5},"موقف السيارات",{"v":20,"d":"ر.س.‏ 20"}]
[{"$nulls":5},"أمي",{"v":1427,"d":"ر.س.‏ 1,427"}]
[{"$nulls":5},"الأسنان",{"v":235,"d":"ر.س.‏ 235"}]
[{"$nulls":5},"التأمين الصحي",{"v":70,"d":"ر.س.‏ 70"}]
[{"$nulls":5},"الطعام",{"v":470,"d":"ر.س.‏ 470"}]
[{"$nulls":5},"الكهرباء",{"v":70,"d":"ر.س.‏ 70"}]
[{"$nulls":5},"المتطلبات الطبية",{"v":74,"d":"ر.س.‏ 74"}]
[{"$nulls":5},"الوقود",{"v":74,"d":"ر.س.‏ 74"}]
[{"$nulls":5},"تأمين السيارة",{"v":74,"d":"ر.س.‏ 74"}]
[{"$nulls":5},"تأمين المنزل",{"v":235,"d":"ر.س.‏ 235"}]
[{"$nulls":5},"مستحقات النادي",{"v":125,"d":"ر.س.‏ 125"}]
[{"$nulls":5},"الإجمالي الكلي",{"v":4362,"d":"ر.س.‏ 4,362"}]
{"$rows_empty":68}
[null,"التاريخ","المشتري","النوع","المبلغ"]
[null,"2017-01-17","أبي","ألعاب رياضية",{"v":1000,"d":"ر.س.‏ 1,000"}]
[null,"2017-01-17","أبي","الرحلة الجوية",{"v":500,"d":"ر.س.‏ 500"}]
[null,"2017-01-17","أبي","الضرائب",{"v":500,"d":"ر.س.‏ 500"}]
[null,"2017-02-20","عائشة","موسيقى",{"v":20,"d":"ر.س.‏ 20"}]
[null,"2017-02-25","عائشة","تذاكر",{"v":125,"d":"ر.س.‏ 125"}]
[null,"2017-01-21","عائشة","الكتب",{"v":250,"d":"ر.س.‏ 250"}]
[null,"2017-02-20","عائشة","العشاء",{"v":20,"d":"ر.س.‏ 20"}]
[null,"2017-02-25","عائشة","الملابس",{"v":125,"d":"ر.س.‏ 125"}]
[null,"2017-01-21","عائشة","دروس الموسيقى",{"v":250,"d":"ر.س.‏ 250"}]
[null,"2017-02-20","عائشة","موقف السيارات",{"v":20,"d":"ر.س.‏ 20"}]
[null,"2017-02-25","عائشة","الإلكترونيات",{"v":125,"d":"ر.س.‏ 125"}]
[null,"2017-01-01","أمي","الوقود",{"v":74,"d":"ر.س.‏ 74"}]
[null,"2017-01-15","أمي","الطعام",{"v":235,"d":"ر.س.‏ 235"}]
[null,"2017-01-21","أمي","مستحقات النادي",{"v":125,"d":"ر.س.‏ 125"}]
[null,"2017-02-02","أمي","الطعام",{"v":235,"d":"ر.س.‏ 235"}]
[null,"2017-01-01","أمي","المتطلبات الطبية",{"v":74,"d":"ر.س.‏ 74"}]
[null,"2017-01-15","أمي","الكهرباء",{"v":70,"d":"ر.س.‏ 70"}]
[null,"2017-02-02","أمي","الأسنان",{"v":235,"d":"ر.س.‏ 235"}]
[null,"2017-01-01","أمي","تأمين السيارة",{"v":74,"d":"ر.س.‏ 74"}]
[null,"2017-01-15","أمي","التأمين الصحي",{"v":70,"d":"ر.س.‏ 70"}]
[null,"2017-02-02","أمي","تأمين المنزل",{"v":235,"d":"ر.س.‏ 235"}]

{"sheet":"17","index":17,"n_rows":107,"n_cols":13,"rows_kept":107}
["يمكنك أيضاً الحصول على أكثر من حقل عمود. يمكن أيضاً أن يتم طيها أو توسيعها."]
["ينتقل PivotTable لهذا المثال من الخلايا B13 إلى M19. في هذه الحالة، لدينا فئة \"النوع\" في مقطع \"الأعمدة\"، والتي تتضمن عناصر \"الطعام\" و\"الأدوات المساعدة\"."]
["جرب هذا\nحدد \"الطعام\" في الخلية H14 واضغط على ALT+غ2 > ط لطي الحقل بأكمله. سيقوم ALT+غ2 > و بتوسيعه."]
["لمتابعة هذا البرنامج التعليمي، اضغط على CTRL+PAGE DOWN. للانتقال إلى الورقة السابقة، اضغط على CTRL+PAGE UP."]
{"$rows_empty":7}
[null,null,{"$f":"IF(AND($C$16=398,$D$15=\"يناير\"),\"أحسنت عملاً!\",\" \")","v":" "}]
[null,"مجموع من المبلغ","تسميات الأعمدة"]
[null,null,"الأدوات المساعدة",{"$nulls":3},"الأدوات المساعدة الإجمالي","الطعام",{"$nulls":3},"الطعام الإجمالي","الإجمالي الكلي"]
[null,"تسميات الصفوف","يناير","فبراير","مارس","أبريل",null,"يناير","فبراير","مارس","أبريل"]
[null,"أبي",{"$nulls":5},{"v":235,"d":"ر.س.‏ 235"},{"v":235,"d":"ر.س.‏ 235"},{"v":235,"d":"ر.س.‏ 235"},{"v":74,"d":"ر.س.‏ 74"},{"v":779,"d":"ر.س.‏ 779"},{"v":779,"d":"ر.س.‏ 779"}]
[null,"أمي",{"v":1000,"d":"ر.س.‏ 1,000"},{"v":1000,"d":"ر.س.‏ 1,000"},{"v":20,"d":"ر.س.‏ 20"},{"v":70,"d":"ر.س.‏ 70"},{"v":2090,"d":"ر.س.‏ 2,090"},{"$nulls":5},{"v":2090,"d":"ر.س.‏ 2,090"}]
[null,"عائشة",{"$nulls":5},{"v":74,"d":"ر.س.‏ 74"},{"v":74,"d":"ر.س.‏ 74"},{"v":125,"d":"ر.س.‏ 125"},{"v":125,"d":"ر.س.‏ 125"},{"v":398,"d":"ر.س.‏ 398"},{"v":398,"d":"ر.س.‏ 398"}]
[null,"الإجمالي الكلي",{"v":1000,"d":"ر.س.‏ 1,000"},{"v":1000,"d":"ر.س.‏ 1,000"},{"v":20,"d":"ر.س.‏ 20"},{"v":70,"d":"ر.س.‏ 70"},{"v":2090,"d":"ر.س.‏ 2,090"},{"v":309,"d":"ر.س.‏ 309"},{"v":309,"d":"ر.س.‏ 309"},{"v":360,"d":"ر.س.‏ 360"},{"v":199,"d":"ر.س.‏ 199"},{"v":1177,"d":"ر.س.‏ 1,177"},{"v":3267,"d":"ر.س.‏ 3,267"}]
{"$rows_empty":75}
[null,"الشهر","المشتري","النوع","المبلغ"]
[null,"يناير","عائشة","الطعام",{"v":74,"d":"ر.س.‏ 74"}]
[null,"يناير","أبي","الطعام",{"v":235,"d":"ر.س.‏ 235"}]
[null,"يناير","أمي","الأدوات المساعدة",{"v":1000,"d":"ر.س.‏ 1,000"}]
[null,"فبراير","عائشة","الطعام",{"v":74,"d":"ر.س.‏ 74"}]
[null,"فبراير","أبي","الطعام",{"v":235,"d":"ر.س.‏ 235"}]
[null,"فبراير","أمي","الأدوات المساعدة",{"v":1000,"d":"ر.س.‏ 1,000"}]
[null,"مارس","عائشة","الطعام",{"v":125,"d":"ر.س.‏ 125"}]
[null,"مارس","أبي","الطعام",{"v":235,"d":"ر.س.‏ 235"}]
[null,"مارس","أمي","الأدوات المساعدة",{"v":20,"d":"ر.س.‏ 20"}]
[null,"أبريل","عائشة","الطعام",{"v":125,"d":"ر.س.‏ 125"}]
[null,"أبريل","أبي","الطعام",{"v":74,"d":"ر.س.‏ 74"}]
[null,"أبريل","أمي","الأدوات المساعدة",{"v":70,"d":"ر.س.‏ 70"}]

{"sheet":"18","index":18,"n_rows":146,"n_cols":5,"rows_kept":146}
["يجب وضع الأمور التالية في الاعتبار: إذا كنت بحاجة إلى مزيد من التفاصيل، فمن الممكن إضافة العديد من حقول الصفوف أو الأعمدة. في هذا المثال، هناك ثلاثة حقول صف."]
["يتراوح نطاق PivotTable لهذا المثال من الخلية D8 إلى E29، ويحتوي على حقول لـ \"الفصل\" و\"المشتري\" و\"النوع\" في العمود D، مع \"مجموع من المبلغ\" في العمود E."]
["تلميح الخبراء\nلا يعني أنك تستطيع إضافة مجموعة من الحقول بأنه يجب عليك فعل ذلك. في هذا المثال، يعمل بشكل جيد. ولكن في بعض الأحيان، يمكن للعديد من الحقول، مع جميع المسافات البادئة الخاصة بهم، أن تجعل PivotTable معقد للغاية من أن يفهمه الآخرون. "]
["لمتابعة هذا البرنامج التعليمي، اضغط على CTRL+PAGE DOWN. للانتقال إلى الورقة السابقة، اضغط على CTRL+PAGE UP."]
[]
[]
[]
[{"$nulls":3},"تسميات الصفوف","مجموع من المبلغ"]
[{"$nulls":3},"فصل الخريف",{"v":5425,"d":"ر.س.‏ 5,425"}]
[{"$nulls":3},"أمي",{"v":5425,"d":"ر.س.‏ 5,425"}]
[{"$nulls":3},"الأدوات المساعدة",{"v":933,"d":"ر.س.‏ 933"}]
[{"$nulls":3},"الإيجار",{"v":3220,"d":"ر.س.‏ 3,220"}]
[{"$nulls":3},"التأمين",{"v":1272,"d":"ر.س.‏ 1,272"}]
[{"$nulls":3},"فصل الربيع",{"v":4760,"d":"ر.س.‏ 4,760"}]
[{"$nulls":3},"أبي",{"v":4760,"d":"ر.س.‏ 4,760"}]
[{"$nulls":3},"الأدوات المساعدة",{"v":1320,"d":"ر.س.‏ 1,320"}]
[{"$nulls":3},"الإيجار",{"v":2400,"d":"ر.س.‏ 2,400"}]
[{"$nulls":3},"التأمين",{"v":1040,"d":"ر.س.‏ 1,040"}]
[{"$nulls":3},"فصل الصيف",{"v":3473,"d":"ر.س.‏ 3,473"}]
[{"$nulls":3},"أمي",{"v":3473,"d":"ر.س.‏ 3,473"}]
[{"$nulls":3},"الأدوات المساعدة",{"v":1133,"d":"ر.س.‏ 1,133"}]
[{"$nulls":3},"الإيجار",{"v":1260,"d":"ر.س.‏ 1,260"}]
[{"$nulls":3},"التأمين",{"v":1080,"d":"ر.س.‏ 1,080"}]
[{"$nulls":3},"فصل الشتاء",{"v":4100,"d":"ر.س.‏ 4,100"}]
[{"$nulls":3},"أبي",{"v":4100,"d":"ر.س.‏ 4,100"}]
[{"$nulls":3},"الأدوات المساعدة",{"v":1650,"d":"ر.س.‏ 1,650"}]
[{"$nulls":3},"الإيجار",{"v":1420,"d":"ر.س.‏ 1,420"}]
[{"$nulls":3},"التأمين",{"v":1030,"d":"ر.س.‏ 1,030"}]
[{"$nulls":3},"الإجمالي الكلي",{"v":17758,"d":"ر.س.‏ 17,758"}]
{"$rows_empty":68}
[null,"المشتري","الموسم","النوع","المبلغ"]
[null,"أبي","فصل الشتاء","التأمين",{"v":300,"d":"ر.س.‏ 300"}]
[null,"أبي","فصل الشتاء","الإيجار",{"v":200,"d":"ر.س.‏ 200"}]
[null,"أبي","فصل الشتاء","الأدوات المساعدة",{"v":400,"d":"ر.س.‏ 400"}]
[null,"أبي","فصل الشتاء","التأمين",{"v":300,"d":"ر.س.‏ 300"}]
[null,"أبي","فصل الشتاء","الإيجار",{"v":800,"d":"ر.س.‏ 800"}]
[null,"أبي","فصل الشتاء","الأدوات المساعدة",{"v":400,"d":"ر.س.‏ 400"}]
[null,"أبي","فصل الشتاء","التأمين",{"v":200,"d":"ر.س.‏ 200"}]
[null,"أبي","فصل الشتاء","الإيجار",{"v":300,"d":"ر.س.‏ 300"}]
[null,"أبي","فصل الشتاء","الأدوات المساعدة",{"v":450,"d":"ر.س.‏ 450"}]
[null,"أبي","فصل الشتاء","التأمين",{"v":230,"d":"ر.س.‏ 230"}]
[null,"أبي","فصل الشتاء","الإيجار",{"v":120,"d":"ر.س.‏ 120"}]
[null,"أبي","فصل الشتاء","الأدوات المساعدة",{"v":400,"d":"ر.س.‏ 400"}]
[null,"أبي","فصل الربيع","التأمين",{"v":210,"d":"ر.س.‏ 210"}]
[null,"أبي","فصل الربيع","الإيجار",{"v":300,"d":"ر.س.‏ 300"}]
[null,"أبي","فصل الربيع","الأدوات المساعدة",{"v":400,"d":"ر.س.‏ 400"}]
[null,"أبي","فصل الربيع","التأمين",{"v":230,"d":"ر.س.‏ 230"}]
[null,"أبي","فصل الربيع","الإيجار",{"v":900,"d":"ر.س.‏ 900"}]
[null,"أبي","فصل الربيع","الأدوات المساعدة",{"v":300,"d":"ر.س.‏ 300"}]
[null,"أبي","فصل الربيع","التأمين",{"v":200,"d":"ر.س.‏ 200"}]
[null,"أبي","فصل الربيع","الإيجار",{"v":1000,"d":"ر.س.‏ 1,000"}]
[null,"أبي","فصل الربيع","الأدوات المساعدة",{"v":220,"d":"ر.س.‏ 220"}]
[null,"أبي","فصل الربيع","التأمين",{"v":400,"d":"ر.س.‏ 400"}]
[null,"أبي","فصل الربيع","الإيجار",{"v":200,"d":"ر.س.‏ 200"}]
[null,"أبي","فصل الربيع","الأدوات المساعدة",{"v":400,"d":"ر.س.‏ 400"}]
[null,"أمي","فصل الصيف","التأمين",{"v":100,"d":"ر.س.‏ 100"}]
[null,"أمي","فصل الصيف","الإيجار",{"v":30,"d":"ر.س.‏ 30"}]
[null,"أمي","فصل الصيف","الأدوات المساعدة",{"v":123,"d":"ر.س.‏ 123"}]
[null,"أمي","فصل الصيف","التأمين",{"v":300,"d":"ر.س.‏ 300"}]
[null,"أمي","فصل الصيف","الإيجار",{"v":350,"d":"ر.س.‏ 350"}]
[null,"أمي","فصل الصيف","الأدوات المساعدة",{"v":230,"d":"ر.س.‏ 230"}]
[null,"أمي","فصل الصيف","التأمين",{"v":120,"d":"ر.س.‏ 120"}]
[null,"أمي","فصل الصيف","الإيجار",{"v":640,"d":"ر.س.‏ 640"}]
[null,"أمي","فصل الصيف","الأدوات المساعدة",{"v":530,"d":"ر.س.‏ 530"}]
[null,"أمي","فصل الصيف","التأمين",{"v":560,"d":"ر.س.‏ 560"}]
[null,"أمي","فصل الصيف","الإيجار",{"v":240,"d":"ر.س.‏ 240"}]
[null,"أمي","فصل الصيف","الأدوات المساعدة",{"v":250,"d":"ر.س.‏ 250"}]
[null,"أمي","فصل الخريف","التأمين",{"v":62,"d":"ر.س.‏ 62"}]
[null,"أمي","فصل الخريف","الإيجار",{"v":600,"d":"ر.س.‏ 600"}]
[null,"أمي","فصل الخريف","الأدوات المساعدة",{"v":340,"d":"ر.س.‏ 340"}]
[null,"أمي","فصل الخريف","التأمين",{"v":205,"d":"ر.س.‏ 205"}]
[null,"أمي","فصل الخريف","الإيجار",{"v":500,"d":"ر.س.‏ 500"}]
[null,"أمي","فصل الخريف","الأدوات المساعدة",{"v":403,"d":"ر.س.‏ 403"}]
[null,"أمي","فصل الخريف","التأمين",{"v":503,"d":"ر.س.‏ 503"}]
[null,"أمي","فصل الخريف","الإيجار",{"v":2000,"d":"ر.س.‏ 2,000"}]
[null,"أمي","فصل الخريف","الأدوات المساعدة",{"v":140,"d":"ر.س.‏ 140"}]
[null,"أمي","فصل الخريف","التأمين",{"v":502,"d":"ر.س.‏ 502"}]
[null,"أمي","فصل الخريف","الإيجار",{"v":120,"d":"ر.س.‏ 120"}]
[null,"أمي","فصل الخريف","الأدوات المساعدة",{"v":50,"d":"ر.س.‏ 50"}]

{"sheet":"19","index":19,"n_rows":55,"n_cols":5,"rows_kept":55}
["هل أنت مستعد لمزيد من الممارسات؟ انتهز الفرصة وقم بمراجعة البيانات أدناه في الخلايا من B7 إلى E55. عندما تكون مستعداً، انتقل إلى الورقة التالية وستقوم بممارسة ما تعلمته حتى الآن. "]
["ليس هناك حاجة لمراجعة جميع صفوف البيانات. ما عليك سوى مراجعة أسماء الحقول في الصف 7. ستبدأ العمل باستخدام هذه في الورقة التالية. "]
["لمتابعة هذا البرنامج التعليمي، اضغط على CTRL+PAGE DOWN. للانتقال إلى الورقة السابقة، اضغط على CTRL+PAGE UP."]
[]
[]
[]
[null,"الموسم","مندوب مبيعات","المنتج","الوحدات المباعة"]
[null,"فصل الشتاء","علياء","برتقال",300]
[null,"فصل الشتاء","مختار","ليمون هندي",200]
[null,"فصل الشتاء","باسل","تفاح",400]
[null,"فصل الشتاء","علياء","موز",300]
[null,"فصل الشتاء","مختار","برتقال",800]
[null,"فصل الشتاء","باسل","ليمون هندي",400]
[null,"فصل الشتاء","علياء","تفاح",200]
[null,"فصل الشتاء","مختار","موز",300]
[null,"فصل الشتاء","باسل","برتقال",450]
[null,"فصل الشتاء","علياء","ليمون هندي",230]
[null,"فصل الشتاء","مختار","تفاح",120]
[null,"فصل الشتاء","باسل","موز",400]
[null,"فصل الربيع","علياء","شمندر أحمر",210]
[null,"فصل الربيع","مختار","بطاطس",300]
[null,"فصل الربيع","باسل","خس",400]
[null,"فصل الربيع","علياء","فجل",230]
[null,"فصل الربيع","مختار","شمندر أحمر",900]
[null,"فصل الربيع","باسل","بطاطس",300]
[null,"فصل الربيع","علياء","خس",200]
[null,"فصل الربيع","مختار","فجل",1000]
[null,"فصل الربيع","باسل","شمندر أحمر",220]
[null,"فصل الربيع","علياء","بطاطس",400]
[null,"فصل الربيع","مختار","خس",200]
[null,"فصل الربيع","باسل","فجل",400]
[null,"فصل الصيف","علياء","توت أزرق",100]
[null,"فصل الصيف","مختار","فراولة",30]
[null,"فصل الصيف","باسل","عنب",123]
[null,"فصل الصيف","علياء","يقطين",300]
[null,"فصل الصيف","مختار","توت أزرق",350]
[null,"فصل الصيف","باسل","فراولة",230]
[null,"فصل الصيف","علياء","عنب",120]
[null,"فصل الصيف","مختار","يقطين",640]
[null,"فصل الصيف","باسل","توت أزرق",530]
[null,"فصل الصيف","علياء","فراولة",560]
[null,"فصل الصيف","مختار","عنب",240]
[null,"فصل الصيف","باسل","يقطين",250]
[null,"فصل الخريف","علياء","قرع",62]
[null,"فصل الخريف","مختار","كوسى",600]
[null,"فصل الخريف","باسل","تفاح",340]
[null,"فصل الخريف","علياء","برتقال",205]
[null,"فصل الخريف","مختار","قرع",500]
[null,"فصل الخريف","باسل","كوسى",403]
[null,"فصل الخريف","علياء","تفاح",503]
[null,"فصل الخريف","مختار","برتقال",2000]
[null,"فصل الخريف","باسل","قرع",140]
[null,"فصل الخريف","علياء","كوسى",502]
[null,"فصل الخريف","مختار","تفاح",120]
[null,"فصل الخريف","باسل","برتقال",50]

{"sheet":"20","index":20,"n_rows":17,"n_cols":11,"rows_kept":17}
["1. توجد \"منطقة PivotTable\" لهذا المثال في الخلايا من B12 إلى C17. انتقل إلى أي من هذه الخلايا. \n\n"]
["2. اضغط على ALT+غ2،‏ ؤ لتشغيل قائمة حقول PivotTable. سينتقل التركيز افتراضياً إلى مربع نص البحث: \"اكتب الكلمات للبحث عنها\" تحرير. لا تكتب أي شيء، بدلاً من ذلك، اضغط على مفتاح tab مرة واحدة. ملاحظة: إذا لم يتم تشغيل \"قائمة الحقول\"، فاضغط على ALT+غ2،‏ ؤ مرة أخرى."]
["3. اضغط على مفاتيح الأسهم للانتقال إلى حقل \"مندوب المبيعات\". اضغط على مفتاح المسافة لإضافة حقل \"مندوب المبيعات\" إلى منطقة \"الصفوف\". إذا كنت تريد عرض تفاصيل \"مندوب المبيعات\" في منطقة \"الأعمدة\"، فاستخدم المفتاح Tab للانتقال إلى حقل \"مندوب المبيعات\" في مقطع \"الصف\"، ثم اضغط على مفتاح المسافة، ثم حدد \"تحرىك إلى تسميات الأعمدة\". اضغط على مفتاح الخروج ESC للخروج من جزء حقول PivotTable. "]
["4. حدد من باع معظم العناصر في فصل الخريف، ثم قم بالتحديد في الخلية K8. "]
["لمتابعة هذا البرنامج التعليمي، اضغط على CTRL+PAGE DOWN. للانتقال إلى الورقة السابقة، اضغط على CTRL+PAGE UP."]
[]
[{"$nulls":10},"حدد خياراً واحداً:"]
[]
[{"$nulls":10},{"$f":"IF($K$8=\"مختار\",\"أنت تسير على الدرب الصحيح!\",IF($K$8=\"باسل\",\"حاول مرة أخرى...\",IF($K$8=\"علياء\",\"ليس تماماً...\",IF($K$8=\" \",\" \",\" \"))))","v":" "}]
[]
[]
[null,"تسميات الصفوف","مجموع من الوحدات المباعة"]
[null,"فصل الخريف",{"v":5425,"d":"5,425"}]
[null,"فصل الربيع",{"v":4760,"d":"4,760"}]
[null,"فصل الشتاء",{"v":4100,"d":"4,100"}]
[null,"فصل الصيف",{"v":3473,"d":"3,473"}]
[null,"الإجمالي الكلي",{"v":17758,"d":"17,758"}]

{"sheet":"21","index":21,"n_rows":14,"n_cols":10,"rows_kept":14}
["1. انقر فوق الخلية B13 لتنشيط PivotTable المسمى \"مجموع من الوحدات المباعة\".\n\n"]
["2. اضغط على ALT+غ2،‏ ؤ لتشغيل قائمة حقول PivotTable. سينتقل التركيز افتراضياً إلى مربع نص البحث: \"اكتب الكلمات للبحث عنها\" تحرير. لا تكتب أي شيء، بدلاً من ذلك، اضغط على مفتاح tab مرة واحدة. ملاحظة: إذا لم يتم تشغيل \"قائمة الحقول\"، فاضغط على ALT+غ2،‏ ؤ مرة أخرى."]
["3. استخدم مفاتيح الأسهم والمسافة لتوسيع المثال ليصبح PivotTable عمودي يحتوي على الفصول على اليمين، ومندوبي المبيعات بمسافة بادئة تحت الفصول. اضغط مفتاح ESC للخروج من جزء \"حقول PivotTable\". "]
["لمتابعة هذا البرنامج التعليمي، اضغط على CTRL+PAGE DOWN. للانتقال إلى الورقة السابقة، اضغط على CTRL+PAGE UP."]
[{"$nulls":9},{"$f":"IF(AND(B$14=\"فصل الخريف\",$C$17=3220),\"أحسنت! لقد وضعت حقل صف\",\" \")","v":" "}]
[{"$nulls":9},{"$f":"IF(AND(B$14=\"فصل الخريف\",$C$17=3220),\"ثانوي. قم الآن بالتمرير لأسفل\",\" \")","v":" "}]
[{"$nulls":9},{"$f":"IF(AND(B$14=\"فصل الخريف\",$C$17=3220),\"وانقر فوق 'التالي'.\",\" \")","v":" "}]
[]
[]
[]
[]
[]
[null,"مجموع من الوحدات المباعة"]
[null,{"v":17758,"d":"17,758"}]

{"sheet":"22","index":22,"n_rows":14,"n_cols":10,"rows_kept":14}
["1. انقر فوق الخلية B13 لتنشيط PivotTable المسمى \"مجموع من الوحدات المباعة\"."]
["2. اضغط على ALT+غ2،‏ ؤ لتشغيل قائمة حقول PivotTable. سينتقل التركيز افتراضياً إلى مربع نص البحث: \"اكتب الكلمات للبحث عنها\" تحرير. لا تكتب أي شيء، بدلاً من ذلك، اضغط على مفتاح tab مرة واحدة. ملاحظة: إذا لم يتم تشغيل \"قائمة الحقول\"، فاضغط على ALT+غ2،‏ ؤ مرة أخرى."]
["3. استخدم مفاتيح الأسهم والمسافة لتعديل المثال بحيث يعرض كل منتج في الصف الخاص به، وكل فصل في العمود الخاص به."]
["لمتابعة هذا البرنامج التعليمي، اضغط على CTRL+PAGE DOWN. للانتقال إلى الورقة السابقة، اضغط على CTRL+PAGE UP.",{"$nulls":8},{"$f":"IF(AND($B$15=\"برتقال\",$G$28=1190),\"أحسنت! لقد وضعت حقل\",\" \")","v":" "}]
[{"$nulls":9},{"$f":"IF(AND($B$15=\"برتقال\",$G$28=1190),\"صف على اليمين وحقل\",\" \")","v":" "}]
[{"$nulls":9},{"$f":"IF(AND($B$15=\"برتقال\",$G$28=1190),\"عمود يحتوي على أربعة\",\" \")","v":" "}]
[{"$nulls":9},{"$f":"IF(AND($B$15=\"برتقال\",$G$28=1190),\"أعمدة جديدة. قم بالتمرير\",\" \")","v":" "}]
[{"$nulls":9},{"$f":"IF(AND($B$15=\"برتقال\",$G$28=1190),\" لأسفل وانقر فوق 'التالي'...\",\" \")","v":" "}]
[]
[]
[]
[]
[null,"مجموع من الوحدات المباعة"]
[null,{"v":17758,"d":"17,758"}]

{"sheet":"23","index":23,"n_rows":16,"n_cols":18,"rows_kept":16}
["1. انقر فوق الخلية B13 لتنشيط PivotTable المسمى \"مجموع من الوحدات المباعة\".\n\n"]
["2. اضغط على ALT+غ2،‏ ؤ لتشغيل قائمة حقول PivotTable. سينتقل التركيز افتراضياً إلى مربع نص البحث: \"اكتب الكلمات للبحث عنها\" تحرير. لا تكتب أي شيء، بدلاً من ذلك، اضغط على مفتاح tab مرة واحدة. ملاحظة: إذا لم يتم تشغيل \"قائمة الحقول\"، فاضغط على ALT+غ2،‏ ؤ مرة أخرى."]
["3. استخدم مفاتيح Tab والأسهم والمسافة لتعديل المثال بحيث يعرض \"مندوبي المبيعات\" على اليسار مع \"الفصول\" بمسافة بادئة أسفلها."]
["لمتابعة هذا البرنامج التعليمي، اضغط على CTRL+PAGE DOWN. للانتقال إلى الورقة السابقة، اضغط على CTRL+PAGE UP."]
[{"$nulls":9},{"$f":"IF(AND($B$14=\"باسل\",$C$14=5036),\"أحسنت! أصبحت البيانات الآن أسهل\",\" \")","v":" "}]
[{"$nulls":9},{"$f":"IF(AND($B$14=\"باسل\",$C$14=5036),\"في القراءة. قم بالتمرير لأسفل\",\" \")","v":" "}]
[{"$nulls":9},{"$f":"IF(AND($B$14=\"باسل\",$C$14=5036),\"وانقر فوق 'التالي'...\",\" \")","v":" "}]
[]
[]
[]
[]
[]
[null,null,"تسميات الأعمدة"]
[null,null,"باسل",{"$nulls":3},"باسل الإجمالي","علياء",{"$nulls":3},"علياء الإجمالي","مختار",{"$nulls":3},"مختار الإجمالي","الإجمالي الكلي"]
[null,null,"فصل الخريف","فصل الربيع","فصل الشتاء","فصل الصيف",null,"فصل الخريف","فصل الربيع","فصل الشتاء","فصل الصيف",null,"فصل الخريف","فصل الربيع","فصل الشتاء","فصل الصيف"]
[null,"مجموع من الوحدات المباعة",933,{"v":1320,"d":"1,320"},{"v":1650,"d":"1,650"},{"v":1133,"d":"1,133"},{"v":5036,"d":"5,036"},{"v":1272,"d":"1,272"},{"v":1040,"d":"1,040"},{"v":1030,"d":"1,030"},{"v":1080,"d":"1,080"},{"v":4422,"d":"4,422"},{"v":3220,"d":"3,220"},{"v":2400,"d":"2,400"},{"v":1420,"d":"1,420"},{"v":1260,"d":"1,260"},{"v":8300,"d":"8,300"},{"v":17758,"d":"17,758"}]

{"sheet":"24","index":24,"n_rows":14,"n_cols":9,"rows_kept":14}
["1. انقر فوق الخلية B13 لتنشيط PivotTable المسمى \"مجموع من الوحدات المباعة\"."]
["2. اضغط على ALT+غ2،‏ ؤ لتشغيل قائمة حقول PivotTable. سينتقل التركيز افتراضياً إلى مربع نص البحث: \"اكتب الكلمات للبحث عنها\" تحرير. لا تكتب أي شيء، بدلاً من ذلك، اضغط على مفتاح tab مرة واحدة. ملاحظة: إذا لم يتم تشغيل \"قائمة الحقول\"، فاضغط على ALT+غ2،‏ ؤ مرة أخرى."]
["3. استخدم مفاتيح Tab والأسهم والمسافة لتعديل المثال بحيث يحتوي كل \"مندوبي مبيعات\" على حقول أعمدة خاصة به مع \"الفصول\" على اليسار، و\"المنتجات\" بمسافة بادئة أسفلها."]
["4. حدد الخلية I9 واختر عدد الليمون الهندي التي قام باسل ببيعها في فصل الشتاء."]
["لمتابعة هذا البرنامج التعليمي، اضغط على CTRL+PAGE DOWN. للانتقال إلى الورقة السابقة، اضغط على CTRL+PAGE UP."]
[]
[]
[{"$nulls":8},"حدد خياراً واحداً:"]
[]
[{"$nulls":8},{"$f":"IF($I$9=400,\"أنت تسير على الدرب الصحيح!\",IF($I$9=530,\"حاول مرة أخرى...\",IF($I$9=123,\"ليس تماماً...\",\" \")))","v":" "}]
[]
[]
[null,"مجموع من الوحدات المباعة"]
[null,{"v":17758,"d":"17,758"}]

{"sheet":"تعرّف على المزيد","index":25,"n_rows":7,"n_cols":1,"rows_kept":7}
["عمل جيد. أليست PivotTables رائعة؟"]
["لكننا نشجعك على الاستمرار! يوجد المزيد لاكتشافه..."]
["معلومات إضافية حول Pivot\nاكتشف المزيد من الأمور التي يمكنك القيام بها من خلال قراءة هذه المقالة المفيدة حول PivotTables."]
["حول التحديث\nاقرأ هذه المقالة الهامة حول كيفية تحديث جداول Pivottable. "]
["المجتمع\nتواصل مع مستخدمي Excel الآخرين. يمكنكم أن تساعدوا بعضكم البعض."]
[]
[" "]